[Event "Torneo Nuevo Centro. Jornada 10"]
[Site "Chess.com"]
[Date "2020.08.21"]
[Round "9"]
[White "Kovacevic, Slobodan"]
[Black "Gimenez Saiz, Jose Raul"]
[Result "0-1"]
[WhiteElo "2275"]
[BlackElo "1904"]
[TimeControl "180+2"]
[EndTime "12:12:18 PDT"]
[Termination "Victoria de rango013 por tiempo"]

1. d4 {[%clk 0:03:01.9]} 1... Nf6 {[%clk 0:02:54.1]} 2. Nf3 {[%clk 0:02:58.5]}
2... c5 {[%clk 0:02:53.8]} 3. d5 {[%clk 0:02:58.1]} 3... b5 {[%clk 0:02:53.4]}
4. Bg5 {[%clk 0:02:56.8]} 4... Ne4 {[%clk 0:02:43.5]} 5. Bf4 {[%clk 0:02:56]}
5... d6 {[%clk 0:02:25.2]} 6. Qd3 {[%clk 0:02:54.1]} 6... Nf6 {[%clk 0:02:24.6]}
7. Qxb5+ {[%clk 0:02:53.3]} 7... Nbd7 {[%clk 0:02:19.4]} 8. Qd3 {[%clk
0:02:49.5]} 8... Qb6 {[%clk 0:02:14.5]} 9. b3 {[%clk 0:02:44.2]} 9... Bb7 {[%clk
0:02:11.1]} 10. c4 {[%clk 0:02:41.4]} 10... g6 {[%clk 0:01:59.2]} 11. Nc3 {[%clk
0:02:39.7]} 11... Bg7 {[%clk 0:01:58.5]} 12. Rc1 {[%clk 0:02:38.6]} 12... O-O
{[%clk 0:01:57.6]} 13. e3 {[%clk 0:02:36.5]} 13... Ng4 {[%clk 0:01:53.8]} 14.
Be2 {[%clk 0:02:35.1]} 14... Qa5 {[%clk 0:01:52.3]} 15. O-O {[%clk 0:02:33.7]}
15... Bxc3 {[%clk 0:01:45.5]} 16. Qxc3 {[%clk 0:02:31.3]} 16... Qxc3 {[%clk
0:01:41.6]} 17. Rxc3 {[%clk 0:02:29.8]} 17... h5 {[%clk 0:01:36.2]} 18. h3
{[%clk 0:02:25.1]} 18... Nge5 {[%clk 0:01:35.9]} 19. Nd2 {[%clk 0:02:23.5]}
19... Kg7 {[%clk 0:01:28]} 20. Bh2 {[%clk 0:02:21.1]} 20... f6 {[%clk
0:01:27.5]} 21. f4 {[%clk 0:02:17.3]} 21... Nf7 {[%clk 0:01:25.8]} 22. Nf3
{[%clk 0:02:13.1]} 22... a5 {[%clk 0:01:25.1]} 23. a4 {[%clk 0:02:07.8]} 23...
Rfb8 {[%clk 0:01:08.8]} 24. Nh4 {[%clk 0:02:05.7]} 24... f5 {[%clk 0:01:04.1]}
25. Nf3 {[%clk 0:01:59.5]} 25... Nf6 {[%clk 0:01:04.6]} 26. Nd2 {[%clk
0:01:58.7]} 26... h4 {[%clk 0:00:58.8]} 27. Kh1 {[%clk 0:01:37]} 27... Bc8
{[%clk 0:00:52.2]} 28. Bf3 {[%clk 0:01:32.6]} 28... Bd7 {[%clk 0:00:49.8]} 29.
Bg1 {[%clk 0:01:31.1]} 29... Rb4 {[%clk 0:00:48.8]} 30. Bf2 {[%clk 0:01:29.1]}
30... Rab8 {[%clk 0:00:48.7]} 31. Bxh4 {[%clk 0:01:25.9]} 31... Rh8 {[%clk
0:00:48.7]} 32. Be1 {[%clk 0:01:21.5]} 32... g5 {[%clk 0:00:48]} 33. Kg1 {[%clk
0:01:12.8]} 33... g4 {[%clk 0:00:41]} 34. hxg4 {[%clk 0:01:10.8]} 34... fxg4
{[%clk 0:00:42.1]} 35. Bd1 {[%clk 0:01:02.3]} 35... Rbb8 {[%clk 0:00:40.2]} 36.
e4 {[%clk 0:00:58.3]} 36... Rh5 {[%clk 0:00:33]} 37. Bg3 {[%clk 0:00:51.8]}
37... Rbh8 {[%clk 0:00:32.2]} 38. Kf2 {[%clk 0:00:51.1]} 38... Bc8 {[%clk
0:00:29.7]} 39. Be2 {[%clk 0:00:48.6]} 39... Bd7 {[%clk 0:00:29.4]} 40. Rcc1
{[%clk 0:00:47.3]} 40... Kf8 {[%clk 0:00:29.2]} 41. Rce1 {[%clk 0:00:43.9]}
41... R8h7 {[%clk 0:00:28.9]} 42. Bd3 {[%clk 0:00:42.5]} 42... Rh8 {[%clk
0:00:28.4]} 43. Ke2 {[%clk 0:00:34.8]} 43... R8h6 {[%clk 0:00:26.9]} 44. Kd1
{[%clk 0:00:34.2]} 44... e5 {[%clk 0:00:27.3]} 45. dxe6 {[%clk 0:00:23.9]} 45...
Bxe6 {[%clk 0:00:26.4]} 46. Kc1 {[%clk 0:00:18.4]} 46... Ke7 {[%clk 0:00:22.9]}
47. Kb2 {[%clk 0:00:16]} 47... Kd7 {[%clk 0:00:24]} 48. Rd1 {[%clk 0:00:14.9]}
48... Kc7 {[%clk 0:00:24.8]} 49. f5 {[%clk 0:00:12.1]} 49... Bd7 {[%clk
0:00:25.5]} 50. Bf4 {[%clk 0:00:09.8]} 50... Rh7 {[%clk 0:00:25.8]} 51. Rde1
{[%clk 0:00:09.3]} 51... Ne5 {[%clk 0:00:25.2]} 52. Bc2 {[%clk 0:00:07.9]} 52...
Kb7 {[%clk 0:00:23]} 53. Rg1 {[%clk 0:00:07.4]} 53... Kc7 {[%clk 0:00:24]} 54.
Nf1 {[%clk 0:00:06.2]} 54... Kb7 {[%clk 0:00:24.1]} 55. Ne3 {[%clk 0:00:05.9]}
55... Kc7 {[%clk 0:00:23.6]} 56. Bxe5 {[%clk 0:00:05.1]} 56... dxe5 {[%clk
0:00:23.6]} 57. Rd1 {[%clk 0:00:04.8]} 57... Bc6 {[%clk 0:00:21]} 58. Rd2 {[%clk
0:00:04.5]} 58... Bxe4 {[%clk 0:00:16.2]} 59. Bxe4 {[%clk 0:00:03]} 59... Nxe4
{[%clk 0:00:17.3]} 60. Rd5 {[%clk 0:00:02.9]} 60... Rh1 {[%clk 0:00:11]} 61.
Rxh1 {[%clk 0:00:02.9]} 61... Rxh1 {[%clk 0:00:11.2]} 62. Rxe5 {[%clk
0:00:03.1]} 62... Nf2 {[%clk 0:00:10.9]} 63. Re6 {[%clk 0:00:02.6]} 63... Nd3+
{[%clk 0:00:10]} 0

[Event "Torneo Nuevo Centro. Jornada 10"]
[Site "Chess.com"]
[Date "2020.08.21"]
[Round "9"]
[White "Hassomal Daswani, Birjkumar"]
[Black "Yatseta Fernandez, Marc Kazymyr"]
[Result "1-0"]
[WhiteElo "1797"]
[BlackElo "1457"]
[TimeControl "180+2"]
[EndTime "12:12:38 PDT"]
[Termination "Victoria de daz000007 por abandono"]

1. e4 {[%clk 0:01:26.3]} 1... e5 {[%clk 0:02:59]} 2. Nf3 {[%clk 0:01:26.7]} 2...
Nc6 {[%clk 0:02:59]} 3. Bc4 {[%clk 0:01:27.2]} 3... Nf6 {[%clk 0:02:54.2]} 4.
O-O {[%clk 0:01:26.2]} 4... Be7 {[%clk 0:02:52.5]} 5. d3 {[%clk 0:01:26.2]} 5...
O-O {[%clk 0:02:52.2]} 6. c3 {[%clk 0:01:27]} 6... d6 {[%clk 0:02:52.4]} 7. h3
{[%clk 0:01:26.9]} 7... Be6 {[%clk 0:02:50.4]} 8. Bb5 {[%clk 0:01:26.5]} 8... a6
{[%clk 0:02:50.6]} 9. Ba4 {[%clk 0:01:27.5]} 9... b5 {[%clk 0:02:40.8]} 10. Bc2
{[%clk 0:01:27.8]} 10... h6 {[%clk 0:02:35.8]} 11. Re1 {[%clk 0:01:27.5]} 11...
Na5 {[%clk 0:02:23.2]} 12. Nbd2 {[%clk 0:01:27]} 12... c5 {[%clk 0:02:22.1]} 13.
Nf1 {[%clk 0:01:27.1]} 13... Nc6 {[%clk 0:02:19.4]} 14. Ng3 {[%clk 0:01:27]}
14... Qd7 {[%clk 0:02:13.2]} 15. Be3 {[%clk 0:01:26.4]} 15... Kh8 {[%clk
0:02:08.7]} 16. Qd2 {[%clk 0:01:26.8]} 16... Ng8 {[%clk 0:01:47.2]} 17. Rad1
{[%clk 0:01:26.6]} 17... f5 {[%clk 0:01:29.9]} 18. exf5 {[%clk 0:01:22]} 18...
Bxf5 {[%clk 0:01:30.4]} 19. Nxf5 {[%clk 0:01:22.8]} 19... Qxf5 {[%clk
0:01:31.8]} 20. d4 {[%clk 0:01:23.1]} 20... e4 {[%clk 0:01:32.4]} 21. dxc5
{[%clk 0:01:13.9]} 21... dxc5 {[%clk 0:01:25.2]} 22. Nh2 {[%clk 0:01:13.9]}
22... Rad8 {[%clk 0:01:24.2]} 23. Qe2 {[%clk 0:01:14.5]} 23... Ne5 {[%clk
0:01:09.2]} 24. Rxd8 {[%clk 0:01:02.2]} 24... Rxd8 {[%clk 0:01:08.7]} 25. Ng4
{[%clk 0:01:03.4]} 25... Nd3 {[%clk 0:00:52.5]} 26. Rb1 {[%clk 0:00:55]} 26...
Nf4 {[%clk 0:00:46.5]} 27. Bxf4 {[%clk 0:00:54.3]} 27... Qxf4 {[%clk 0:00:47.5]}
28. Qxe4 {[%clk 0:00:55.1]} 28... Qxe4 {[%clk 0:00:33.3]} 29. Bxe4 {[%clk
0:00:55.6]} 29... Nf6 {[%clk 0:00:27]} 30. Bb7 {[%clk 0:00:55.4]} 30... Nxg4
{[%clk 0:00:21.7]} 31. hxg4 {[%clk 0:00:55.9]} 31... a5 {[%clk 0:00:23]} 32. Ba6
{[%clk 0:00:55.7]} 32... b4 {[%clk 0:00:23.4]} 33. Re1 {[%clk 0:00:47]} 33...
Bf8 {[%clk 0:00:22.6]} 34. Re2 {[%clk 0:00:44.1]} 34... bxc3 {[%clk 0:00:22.3]}
35. bxc3 {[%clk 0:00:44.9]} 35... Rd1+ {[%clk 0:00:22.8]} 36. Kh2 {[%clk
0:00:45.4]} 36... Bd6+ {[%clk 0:00:21.5]} 37. g3 {[%clk 0:00:46.3]} 37... Kh7
{[%clk 0:00:20.2]} 38. Kg2 {[%clk 0:00:44.9]} 38... Kg6 {[%clk 0:00:19.4]} 39.
Re6+ {[%clk 0:00:44.5]} 39... Kf7 {[%clk 0:00:18.7]} 40. Re4 {[%clk 0:00:44.4]}
40... Rc1 {[%clk 0:00:17.1]} 41. Bc4+ {[%clk 0:00:42.1]} 41... Kf8 {[%clk
0:00:17.2]} 42. Re3 {[%clk 0:00:43.2]} 42... Be7 {[%clk 0:00:15.6]} 43. Rf3+
{[%clk 0:00:43.3]} 43... Ke8 {[%clk 0:00:15.8]} 44. Rd3 {[%clk 0:00:42.7]} 44...
Bf6 {[%clk 0:00:14]} 45. Bb5+ {[%clk 0:00:39.2]} 45... Ke7 {[%clk 0:00:14.2]}
46. c4 {[%clk 0:00:40.3]} 46... Rc3 {[%clk 0:00:11.1]} 47. Re3+ {[%clk
0:00:35.8]} 47... Rxe3 {[%clk 0:00:10.6]} 48. fxe3 {[%clk 0:00:36.7]} 48... Kd6
{[%clk 0:00:11.3]} 49. Kf3 {[%clk 0:00:37.6]} 49... Ke5 {[%clk 0:00:11.8]} 50.
Bc6 {[%clk 0:00:36.6]} 50... Bg5 {[%clk 0:00:09.9]} 51. Bd5 {[%clk 0:00:36.2]}
51... g6 {[%clk 0:00:11]} 52. Bf7 {[%clk 0:00:35.4]} 52... Bf6 {[%clk
0:00:07.2]} 53. Bxg6 {[%clk 0:00:35.7]} 53... Bg5 {[%clk 0:00:07.7]} 54. Be8
{[%clk 0:00:35.4]} 54... Bf6 {[%clk 0:00:08]} 55. Bc6 {[%clk 0:00:34.8]} 55...
Bg5 {[%clk 0:00:08.8]} 56. Ke2 {[%clk 0:00:34.1]} 56... Bf6 {[%clk 0:00:10]} 57.
Kd3 {[%clk 0:00:35.2]} 57... Bg5 {[%clk 0:00:11]} 58. Kc2 {[%clk 0:00:35.9]}
58... Bf6 {[%clk 0:00:11.9]} 59. Kb3 {[%clk 0:00:36.3]} 59... Bg5 {[%clk
0:00:12.7]} 60. Ka4 {[%clk 0:00:36.5]} 60... Bd8 {[%clk 0:00:12.3]} 61. Kb5
{[%clk 0:00:33.9]} 61... Kf6 {[%clk 0:00:09.2]} 62. Kxc5 {[%clk 0:00:34.5]}
62... Kg5 {[%clk 0:00:09.1]} 63. Bd7 {[%clk 0:00:34.6]} 63... Bc7 {[%clk
0:00:07.6]} 64. Kc6 {[%clk 0:00:33.8]} 64... Bxg3 {[%clk 0:00:07.7]} 65. Kb7
{[%clk 0:00:34.2]} 65... Be5 {[%clk 0:00:07.2]} 66. c5 {[%clk 0:00:34.8]} 66...
Bc3 {[%clk 0:00:03.8]} 67. c6 {[%clk 0:00:35.4]} 67... Be5 {[%clk 0:00:04.2]}
68. c7 {[%clk 0:00:36]} 68... Bxc7 {[%clk 0:00:05.7]} 69. Kxc7 {[%clk
0:00:36.9]} 1

[Event "Torneo Nuevo Centro. Jornada 10"]
[Site "Chess.com"]
[Date "2020.08.21"]
[Round "9"]
[White "Gómez Alonso, Óscar"]
[Black "Donate Peris, Jose Manuel"]
[Result "1/2-1/2"]
[WhiteElo "1818"]
[BlackElo "1542"]
[TimeControl "180+2"]
[EndTime "12:13:25 PDT"]
[Termination "Partida en tablas por material insuficiente"]

1. d4 {[%clk 0:03:00]} 1... Nf6 {[%clk 0:02:59.2]} 2. c4 {[%clk 0:03:00.9]} 2...
e6 {[%clk 0:02:59.5]} 3. Nc3 {[%clk 0:03:01.7]} 3... d5 {[%clk 0:02:59.9]} 4. e3
{[%clk 0:03:00.9]} 4... Bb4 {[%clk 0:02:59.1]} 5. Bd3 {[%clk 0:02:58.6]} 5...
Bxc3+ {[%clk 0:02:59.3]} 6. bxc3 {[%clk 0:02:59.3]} 6... dxc4 {[%clk 0:02:58.7]}
7. Bxc4 {[%clk 0:03:00]} 7... Nbd7 {[%clk 0:02:53.2]} 8. Nf3 {[%clk 0:03:00.7]}
8... b6 {[%clk 0:02:53.3]} 9. O-O {[%clk 0:03:01]} 9... Bb7 {[%clk 0:02:53.8]}
10. Re1 {[%clk 0:03:01.4]} 10... c5 {[%clk 0:02:52.3]} 11. Bb3 {[%clk
0:03:00.2]} 11... cxd4 {[%clk 0:02:51]} 12. cxd4 {[%clk 0:02:58]} 12... O-O
{[%clk 0:02:49.4]} 13. Bb2 {[%clk 0:02:58.7]} 13... Nd5 {[%clk 0:02:49]} 14. Rc1
{[%clk 0:02:50.7]} 14... Rc8 {[%clk 0:02:45.3]} 15. a3 {[%clk 0:02:42.4]} 15...
Rxc1 {[%clk 0:02:42.7]} 16. Qxc1 {[%clk 0:02:42.5]} 16... N7f6 {[%clk
0:02:41.1]} 17. e4 {[%clk 0:02:37.4]} 17... Ne7 {[%clk 0:02:40.8]} 18. Bc2
{[%clk 0:02:35.3]} 18... Ng6 {[%clk 0:02:39.1]} 19. Qe3 {[%clk 0:02:30.4]} 19...
Qc7 {[%clk 0:02:30]} 20. Bb1 {[%clk 0:02:30.4]} 20... Rc8 {[%clk 0:02:21.3]} 21.
h4 {[%clk 0:02:30.3]} 21... h5 {[%clk 0:02:16.4]} 22. Qg5 {[%clk 0:02:12.2]}
22... Qf4 {[%clk 0:02:03.4]} 23. Qxf4 {[%clk 0:01:42.6]} 23... Nxf4 {[%clk
0:02:03.1]} 24. g3 {[%clk 0:01:43.6]} 24... Ng6 {[%clk 0:01:58.6]} 25. Rc1
{[%clk 0:01:35.7]} 25... Rxc1+ {[%clk 0:01:53.2]} 26. Bxc1 {[%clk 0:01:36.5]}
26... Nxe4 {[%clk 0:01:51]} 27. Ne5 {[%clk 0:01:32]} 27... Nxe5 {[%clk
0:01:49.2]} 28. dxe5 {[%clk 0:01:33]} 28... Nc3 {[%clk 0:01:43.1]} 29. Bd3
{[%clk 0:01:31.3]} 29... Nd5 {[%clk 0:01:41.9]} 30. Bd2 {[%clk 0:01:28.5]} 30...
g6 {[%clk 0:01:39.9]} 31. Be4 {[%clk 0:01:28.6]} 31... Kf8 {[%clk 0:01:37.7]}
32. f3 {[%clk 0:01:20.3]} 32... Ke7 {[%clk 0:01:34]} 33. g4 {[%clk 0:01:20.4]}
33... hxg4 {[%clk 0:01:32.5]} 34. fxg4 {[%clk 0:01:21.3]} 34... Ba6 {[%clk
0:01:26.4]} 35. h5 {[%clk 0:01:20.7]} 35... gxh5 {[%clk 0:01:02]} 36. gxh5
{[%clk 0:01:21.6]} 36... Kf8 {[%clk 0:01:02.7]} 37. h6 {[%clk 0:01:17.6]} 37...
Kg8 {[%clk 0:01:03]} 38. h7+ {[%clk 0:01:18.1]} 38... Kh8 {[%clk 0:01:02.3]} 39.
Kh2 {[%clk 0:01:04.4]} 39... Ne7 {[%clk 0:01:02.4]} 40. Bg5 {[%clk 0:01:03.4]}
40... Ng6 {[%clk 0:00:56.9]} 41. Bf6+ {[%clk 0:01:04.1]} 41... Kxh7 {[%clk
0:00:56.9]} 42. Kg3 {[%clk 0:01:04.1]} 42... Kh6 {[%clk 0:00:52.7]} 43. Kg4
{[%clk 0:01:04.8]} 43... Be2+ {[%clk 0:00:50.5]} 44. Kg3 {[%clk 0:01:02.2]}
44... Kh5 {[%clk 0:00:48.7]} 45. Bc6 {[%clk 0:00:59.7]} 45... Nf8 {[%clk
0:00:22.8]} 46. Be8 {[%clk 0:00:57.7]} 46... Kg6 {[%clk 0:00:23]} 47. Kf4 {[%clk
0:00:54]} 47... Nd7 {[%clk 0:00:21.2]} 48. Bd8 {[%clk 0:00:52.7]} 48... Nc5
{[%clk 0:00:19.3]} 49. Be7 {[%clk 0:00:47.5]} 49... Bc4 {[%clk 0:00:16.7]} 50.
Bd6 {[%clk 0:00:41.7]} 50... Bd5 {[%clk 0:00:16]} 51. Ke3 {[%clk 0:00:42.4]}
51... a6 {[%clk 0:00:11.9]} 52. Kd4 {[%clk 0:00:43.4]} 52... Nb3+ {[%clk
0:00:10.7]} 53. Kc3 {[%clk 0:00:43.7]} 53... b5 {[%clk 0:00:10]} 54. Kb4 {[%clk
0:00:38.7]} 54... Nd2 {[%clk 0:00:09.7]} 55. Ka5 {[%clk 0:00:39.2]} 55... Nc4+
{[%clk 0:00:09.6]} 56. Kxa6 {[%clk 0:00:39.4]} 56... Nxa3 {[%clk 0:00:10.1]} 57.
Ka5 {[%clk 0:00:37]} 57... Nc4+ {[%clk 0:00:10]} 58. Kb4 {[%clk 0:00:36.9]}
58... Nxe5 {[%clk 0:00:09.3]} 59. Bxe5 {[%clk 0:00:37.5]} 59... Kf5 {[%clk
0:00:08.9]} 60. Bd6 {[%clk 0:00:37.8]} 60... f6 {[%clk 0:00:08.4]} 61. Bxb5
{[%clk 0:00:38.7]} 61... e5 {[%clk 0:00:09]} 62. Kc5 {[%clk 0:00:38.1]} 62...
Bg2 {[%clk 0:00:08.3]} 63. Bd7+ {[%clk 0:00:38.5]} 63... Ke4 {[%clk 0:00:07.1]}
64. Bc6+ {[%clk 0:00:38.5]} 64... Ke3 {[%clk 0:00:06.8]} 65. Bxg2 {[%clk
0:00:39.9]} 65... e4 {[%clk 0:00:07.3]} 66. Kd5 {[%clk 0:00:39.4]} 66... f5
{[%clk 0:00:07.4]} 67. Bc7 {[%clk 0:00:33.4]} 67... f4 {[%clk 0:00:08.5]} 68.
Bxe4 {[%clk 0:00:34.5]} 68... f3 {[%clk 0:00:08.5]} 69. Bb6+ {[%clk 0:00:35.6]}
69... Ke2 {[%clk 0:00:07.7]} 70. Bc2 {[%clk 0:00:32.4]} 70... f2 {[%clk
0:00:08.5]} 71. Ba4 {[%clk 0:00:25.6]} 71... f1=Q {[%clk 0:00:08.9]} 72. Bb5+
{[%clk 0:00:26.7]} 72... Ke1 {[%clk 0:00:09.3]} 73. Ba5+ {[%clk 0:00:27.2]}
73... Kf2 {[%clk 0:00:09.8]} 74. Bb6+ {[%clk 0:00:26.1]} 74... Ke1 {[%clk
0:00:10.5]} 75. Kc6 {[%clk 0:00:25.1]} 75... Qf6+ {[%clk 0:00:09.9]} 76. Kb7
{[%clk 0:00:25.8]} 76... Qf3+ {[%clk 0:00:08.9]} 77. Ka6 {[%clk 0:00:26.3]}
77... Qa3+ {[%clk 0:00:08.6]} 78. Kb7 {[%clk 0:00:26.4]} 78... Qe7+ {[%clk
0:00:08.7]} 79. Kc6 {[%clk 0:00:27.5]} 79... Qe6+ {[%clk 0:00:09.1]} 80. Kc5
{[%clk 0:00:28.5]} 80... Qxb6+ {[%clk 0:00:09.4]} 81. Kxb6 {[%clk 0:00:29.5]}
1/2-1